Cogmind - Beta 9.6 @@@ ROGUE MODE // 2020.07.05 @ 23:37:57 Player: Finestep Result: Destroyed by S-43 Plague with Heavy Machine Gun Performance ------------- Evolutions (8) 4000 Regions Visited (21) 4200 Robots Destroyed (600) 3000 Value Destroyed (26980) 26980 Prototype IDs (41) 820 Alien Tech Used (0) 0 Bonus (13519) 13519 TOTAL SCORE: 52519 Bonus ------- Triggered High Security 1500 High Alert Combat Kills 10142 Follower Combat Kills 1195 Entered Garrisons 200 Used RIF Installer 500 Network Hubs Disabled 200 Met Imprinter 300 Met Zhirov 300 A7 Reached Mainframe 300 Met R17 at Cetus 500 Read Decrypted Archives 300 Friendly Fire -1918 Cogmind --------- Core Integrity 0/1450 Matter 674/800 Energy 10/100 System Corruption 15% Temperature Cool (20) Movement Core (200) Ox3 Location -2/Garrison Parts ------- > --- POWER (2) -------- (None) > --- PROPULSION (5) --- (None) > --- UTILITY (13) ----- Matter Compressor Matter Compressor > --- WEAPON (3) ------- (None) > --- INVENTORY (4) ---- Heavy Shock Bomb Launcher Phasing Sabre Peak State ------------ > --- POWER ------------ Particle Reactor Particle Reactor > --- PROPULSION ------- Centrium Heavy Treads Biometal Heavy Treads > --- UTILITY ---------- Advanced Coolant Injector Large Storage Unit Large Storage Unit Large Storage Unit Advanced Signal Interpreter Experimental Targeting Computer Experimental Targeting Computer Advanced Target Analyzer Improved Core Analyzer Centrium Medium Armor Plating Medium Regenerative Plating Experimental Hacking Suite > --- WEAPON ----------- Gamma Rifle Linear Accelerator Linear Accelerator > --- INVENTORY -------- Reinforced Antimatter Reactor Advanced Heavy Siege Treads Advanced Heavy Siege Treads Fusion Compressor Experimental Coolant Injector Advanced Energy Well Advanced Matter Compressor Advanced Sensor Array Long-range Terrain Scanner Experimental Transmission Jammer Centrium Medium Armor Plating Centrium Medium Armor Plating System Restoration Module Linear Accelerator Linear Accelerator Compact Tesla Bomb Launcher Fusion Bomb Launcher Phasing Sabre [Rating: 154] Favorites ----------- Power Heavy Deuterium Engine Engine Heavy Deuterium Engine Power Core Reinforced Fission Core Reactor Reinforced Antimatter Reactor Propulsion Carbon-fiber Leg Treads Light Treads Leg Carbon-fiber Leg Wheel Wheel Hover Unit Improved Antigrav System Utility Large Storage Unit Device Improved Heat Sink Storage Large Storage Unit Processor Advanced Signal Interpreter Hackware Experimental Hacking Suite Protection Improved Weapon Shielding Weapon Assault Cannon Energy Gun Precision Shock Rifle Energy Cannon Particle Cannon Ballistic Gun High-powered Shotgun Ballistic Cannon Assault Cannon Launcher Advanced EMP Blaster Special Weapon Mining Laser Slashing Weapon Power Sword Build | -11 -10 -9 -8 -7 -7 -7 -6 -6 -6 -6 -5 -5 -4 -4 -4 -4 -4 -3 -3 -2 -2 ------- Run | Scr Mat Mat Mat Fac Low Low Fac Low Low Zio Pro Fac Fac Ext Cet Arc Hub Res Arm Res Gar Slots Evolved 16 | . . 2 2 2 . . 2 . . . . 2 2 . . . . 2 . 2 . Power 1 | . . . . . . . . . . . . . 1 . . . . . . . . Propulsion 3 | . . . . . . . 1 . . . . . 1 . . . . . . 1 . Utility 11 | . . 2 2 2 . . . . . . . 2 . . . . . 2 . 1 . Weapon 1 | . . . . . . . 1 . . . . . . . . . . . . . . Parts Attached 612 | 8 12 29 48 83 4 2 24 7 . 5 10 43 27 44 28 . 20 22 89 68 39 Power 56 | 1 . 5 5 8 . . 2 . . . 4 2 2 5 4 . . 3 6 8 1 Engine 17 | 1 . 3 2 8 . . 1 . . . 2 . . . . . . . . . . Core 15 | . . 2 3 . . . 1 . . . 2 2 2 1 1 . . . . 1 . Reactor 24 | . . . . . . . . . . . . . . 4 3 . . 3 6 7 1 Propulsion 104 | 3 1 7 12 12 1 . 4 4 . . . 2 2 8 3 . . 4 11 16 14 Treads 58 | 1 . 7 12 12 1 . 3 1 . . . 1 2 . 2 . . 4 8 4 . Leg 41 | . . . . . . . . 3 . . . 1 . 8 1 . . . 3 11 14 Wheel 4 | 2 1 . . . . . 1 . . . . . . . . . . . . . . Hover 1 | . . . . . . . . . . . . . . . . . . . . 1 . Flight . | . . . . . . . . . . . . . . . . . . . . . . Utility 222 | 1 6 3 14 27 2 . 10 . . 5 . 17 15 24 11 . 14 7 40 19 7 Device 108 | . 1 1 5 12 1 . 5 . . 3 . 11 8 13 3 . 10 3 16 13 3 Storage 21 | 1 3 2 1 1 . . 3 . . . . . . 1 1 . . . 4 2 2 Processor 17 | . 1 . 1 2 1 . 1 . . . . 5 . 2 . . . . 4 . . Hackware 5 | . . . . . . . . . . . . . 1 . . . . 2 . . 2 Protection 71 | . 1 . 7 12 . . 1 . . 2 . 1 6 8 7 . 4 2 16 4 . Artifact . | . . . . . . . . . . . . . . . . . . . . . . Weapon 230 | 3 5 14 17 36 1 2 8 3 . . 6 22 8 7 10 . 6 8 32 25 17 Energy Gun 42 | 2 1 . 2 9 . . 3 1 . . 2 4 3 . . . . . 6 8 1 Energy Cannon 43 | . 2 9 6 5 . . . . . . . 3 3 1 3 . 3 2 2 . 4 Ballistic Gun 52 | 1 . 3 2 11 . . 1 . . . 2 6 . 5 3 . 1 3 1 7 6 Ballistic Cannon 35 | . 1 . 4 2 . . 2 . . . . 1 2 . . . . 1 17 5 . Launcher 42 | . . 1 3 7 1 2 1 1 . . 2 2 . 1 3 . . 2 6 5 5 Special Weapon 2 | . 1 1 . . . . . . . . . . . . . . . . . . . Impact Weapon . | . . . . . . . . . . . . . . . . . . . . . . Slashing Weapon 14 | . . . . 2 . . 1 1 . . . 6 . . 1 . 2 . . . 1 Piercing Weapon . | . . . . . . . . . . . . . . . . . . . . . . Special Melee Weapon . | . . . . . . . . . . . . . . . . . . . . . . Unidentified Prototypes 29 | . . 1 2 2 . . . . . 1 . 2 . . 7 . 1 1 12 . . Parts Lost 171 | . . 7 6 33 . . 4 . . . . 1 2 2 1 . 3 6 25 45 36 Power 16 | . . 2 1 3 . . 2 . . . . . . . . . . . 1 4 3 Propulsion 30 | . . 1 . 7 . . . . . . . . . . . . . . 3 8 11 Utility 71 | . . . 5 10 . . 2 . . . . 1 1 2 1 . 1 3 13 20 12 Weapon 54 | . . 4 . 13 . . . . . . . . 1 . . . 2 3 8 13 10 Highest Loss Streak 19 | . . 2 2 12 . . 2 . . . . 1 2 1 1 . 2 2 7 17 19 Average Slot Usage (%) 92 | . 98 99 98 95 82 84 87 99 100 99 93 92 88 92 94 89 88 89 87 75 67 Engine 4 | . 14 6 3 6 7 7 4 6 6 6 5 3 . . . . . . . . . Core 1 | . . 4 4 . . . 1 . . . . 1 10 3 4 . . . . 1 . Reactor 2 | . . . . . . . . . . . . . . 6 5 10 10 9 8 5 7 Treads 10 | . 14 21 17 14 11 15 13 12 . . . . 10 6 4 10 10 8 8 2 . Leg 5 | . . . . . . . . 7 20 20 20 14 . 7 10 . . . . 13 15 Device 10 | . 1 11 10 15 14 15 10 13 13 12 6 8 5 6 1 5 7 9 6 16 18 Storage 20 | . 23 33 27 23 30 30 20 20 20 20 20 17 15 15 15 15 15 14 14 10 11 Processor 12 | . 1 . 4 9 15 15 13 13 13 13 13 19 21 23 26 26 25 19 21 5 . Protection 5 | . . . 12 9 . . 3 6 6 6 6 4 6 5 8 5 2 8 4 4 . Energy Gun 2 | . 11 . . 2 . . 3 4 . . 3 4 4 . . . . . 3 3 . Energy Cannon 3 | . 2 17 4 1 . . . . . . . 1 1 6 3 . 2 2 . . 1 Ballistic Gun 5 | . 11 . 5 6 . . 3 6 6 6 6 5 . 6 9 10 10 7 1 4 7 Ballistic Cannon 4 | . 2 3 7 2 . . 5 6 6 6 6 3 8 2 . . . 1 6 3 . Naked Turns . | . . . . . . . . . . . . . . . . . . . . . . Heaviest Build 154 | 10 73 97 111 122 101 101 122 77 74 90 103 101 123 129 111 106 116 132 154 141 104 Greatest Support 160 | 20 10 40 44 44 51 51 60 60 45 45 45 70 140 140 160 160 160 160 155 130 128 Greatest Overweight (x) 30 | . 7 8 5 4 3 1 5 3 1 1 2 2 . 2 1 . . . 3 5 30 Average Overweight (x) 1 | . 4 2 2 2 1 1 1 1 1 1 1 1 . . . . . . . . . Largest Inventory Capacity 32 | 6 20 26 26 26 26 26 32 22 22 22 22 22 22 22 22 22 22 22 22 16 10 Average Capacity 22 | 5 16 26 26 26 26 26 26 22 22 22 22 22 22 22 22 22 22 22 21 11 7 Most Carried 29 | 5 20 26 26 26 14 14 29 22 22 22 22 22 22 22 22 22 22 22 22 15 10 Average Carried 20 | 2 13 22 25 23 11 13 20 21 21 21 21 21 21 21 21 22 21 19 19 10 6 Final Capacity 26 | 6 20 26 26 26 26 26 22 22 22 22 22 22 22 22 22 22 22 22 16 10 4 Final Carried 26 | 5 20 26 26 12 14 14 22 22 22 22 22 22 22 22 22 22 20 20 13 10 2 Class Distribution -------------------- 51% | Hauler-Mutant 15% | Scavenger-Gunner 8% | Scavenger-Mutant 7% | Hauler-Skirmisher 6% | Hauler-Gunner 4% | Scavenger-Skirmisher 3% | Hacker-Gunner Dominant Class ---------------- Hauler-Mutant | -10/Materials Hauler-Mutant | -9/Materials Hauler-Mutant | -8/Materials Hauler-Mutant | -7/Factory Hauler-Mutant | -7/Lower Caves Hauler-Mutant | -7/Lower Caves Hauler-Skirmisher | -6/Factory Hauler-Skirmisher | -6/Lower Caves Hauler-Mutant | -6/Lower Caves Hauler-Mutant | -6/Zion Scavenger-Skirmisher | -5/Proximity Caves Scavenger-Skirmisher | -5/Factory Hauler-Gunner | -4/Factory Scavenger-Gunner | -4/Extension Scavenger-Gunner | -4/Cetus Scavenger-Mutant | -4/Archives Scavenger-Mutant | -4/Hub_04(d) Scavenger-Gunner | -3/Research Hacker-Gunner | -3/Armory Scavenger-Gunner | -2/Research Scavenger-Mutant | -2/Garrison Resources | -11 -10 -9 -8 -7 -7 -7 -6 -6 -6 -6 -5 -5 -4 -4 -4 -4 -4 -3 -3 -2 -2 ----------- Run | Scr Mat Mat Mat Fac Low Low Fac Low Low Zio Pro Fac Fac Ext Cet Arc Hub Res Arm Res Gar Matter Collected 17186 | 289 431 476 1752 1807 131 49 546 134 . 50 152 917 1267 1295 446 . 525 728 3437 1954 800 Remotely 1163 | . . . . 442 . . . . . . . . 383 338 . . . . . . . Salvage Created 30750 | 145 790 1829 3217 3373 70 62 928 334 . . 243 1742 1738 2851 999 . 1547 2525 3779 2893 1685 Parts 1254 | 10 54 109 166 143 1 1 36 8 . . 9 56 66 92 44 . 72 101 121 111 54 Haulers Intercepted 21 | . 2 5 3 2 . . . . . . . 2 3 1 . . 1 2 . . . Recyclers Shooed 24 | . . 2 8 1 . . 5 . . . . 2 3 . . . 1 2 . . . Parts Field Recycled . | . . . . . . . . . . . . . . . . . . . . . . Retrieved Matter . | . . . . . . . . . . . . . . . . . . . . . . Parts Self-Destructed 18 | . . . . . 4 6 . 1 . . 7 . . . . . . . . . . Prevented 13 | . . . . . . 1 . 6 . . 6 . . . . . . . . . . Kills | -11 -10 -9 -8 -7 -7 -7 -6 -6 -6 -6 -5 -5 -4 -4 -4 -4 -4 -3 -3 -2 -2 ------- Run | Scr Mat Mat Mat Fac Low Low Fac Low Low Zio Pro Fac Fac Ext Cet Arc Hub Res Arm Res Gar Combat Hostiles Destroyed 439 | . 15 38 57 63 3 . 12 4 . . 5 17 16 29 14 . 16 23 66 37 24 Melee 7 | . . . . 5 . . . . . . . . . . . . . . . . 2 Guns 140 | . 13 . 14 30 . . 2 . . . 1 5 . 14 4 . 12 12 2 20 11 Cannons 186 | . 2 34 35 9 . . 8 1 . . . 8 16 12 1 . 4 5 42 9 . AOE 68 | . . 4 6 16 3 . . 2 . . 2 4 . 1 5 . . 1 13 4 7 Classes Destroyed 21 | 2 7 2 2 3 . . . . . . . . 1 1 . . . 1 2 . . Worker 28 | . 3 6 7 4 . . . . . . . . 1 . . . 2 3 . 2 . Builder 14 | . 1 . 4 2 . . . . . . . . 1 . . . 2 2 . 2 . Tunneler 6 | 4 1 . . . . . . . . . . . . . . . . . . 1 . Hauler 21 | . 2 5 3 2 . . . . . . . 2 3 1 . . 1 2 . . . Recycler 44 | 1 . 3 13 5 . . 4 . . . . 4 4 3 . . 1 4 . 2 . Carrier 1 | . . . . . . . . . . . . . . . . . . . 1 . . Mechanic 3 | . . . . 2 . . . . . . . . . . . . . . 1 . . Operator 8 | . 2 . 1 1 . . . . . . . . . 1 . . 1 1 . 1 . Drone 1 | . . . . . . . . . . . . . 1 . . . . . . . . Watcher 30 | . 3 5 4 . . . 1 . . . . 2 1 3 2 . 3 1 3 2 . Swarmer 78 | . 3 14 17 6 1 . 3 . . . 2 . . 6 5 . . . 9 4 8 Saboteur 2 | . . . . . . . . . . . . . . . . . . 1 1 . . Grunt 194 | . 12 14 21 42 1 . 2 3 . . 3 12 4 14 2 . 9 8 21 14 12 Brawler 22 | . . . 1 3 . . 1 . . . . 1 1 . . . . . 9 5 1 Duelist 17 | . . 2 3 4 . . . 1 . . . . 1 . . . . 3 2 1 . Protector 1 | . . . . 1 . . . . . . . . . . . . . . . . . Sentry 48 | . . 8 14 3 1 . 2 . . . . . 4 5 . . 1 3 6 1 . Demolisher 1 | . . . . . . . . . . . . . . . . . . . 1 . . Hunter 27 | . . . 1 1 . . . . . . . . 2 2 . . 2 4 8 5 2 Programmer 40 | . . . . 3 . . 4 . . . . 4 4 . . . 4 4 9 7 1 Behemoth 3 | . . . . . . . . . . . . . . 2 . . . . 1 . . Cetus Guard 7 | . . . . . . . . . . . . . . . 7 . . . . . . Packrat 2 | . . . . . . 1 . 1 . . . . . . . . . . . . . Guerrilla 1 | . . . . . . . . . . . . . . 1 . . . . . . . Best Kill Streak 14 | 5 4 9 10 8 3 . 3 4 . . 2 5 7 10 5 . 7 12 14 11 7 Combat Bots Only 11 | . 3 9 6 6 3 . 2 4 . . 2 4 3 9 5 . 5 7 11 9 7 Max Kills in Single Turn 4 | 1 1 2 4 4 1 1 1 1 . . 2 4 2 2 4 . 2 2 4 2 3 Gunslinging 1 | . . . 1 . . . . . . . . . . 1 . . . . . . . Exploded 4 | . . 2 3 4 1 . . 1 . . 2 4 . 1 4 . . 1 4 2 3 Melee 1 | . . . . 1 . . . . . . . . . . . . . . . . 1 Uniques/NPCs Destroyed 1 | . . . . . . . . . . . . . . . 1 . . . . . . A7 (-4/Cetus) Combat | -11 -10 -9 -8 -7 -7 -7 -6 -6 -6 -6 -5 -5 -4 -4 -4 -4 -4 -3 -3 -2 -2 -------- Run | Scr Mat Mat Mat Fac Low Low Fac Low Low Zio Pro Fac Fac Ext Cet Arc Hub Res Arm Res Gar Damage Taken 42375 | . 429 1411 2687 5970 138 . 693 . . . 94 1037 1355 2256 495 . 1661 2898 9304 7078 4869 Core 3877 | . 110 236 245 564 25 . 135 . . . . 77 45 157 27 . 81 196 513 671 795 Absorbed by Shields 413 | . . . . . . . . . . . . . . 176 237 . . . . . . Reduced by Siege Mode 372 | . . . . . . . . . . . . . . 37 . . . 148 187 . . Core Remaining (%) 62 | 100 56 41 55 . . 15 . . . . 84 92 . . . . 73 . 45 . . Volleys Fired 1386 | 11 91 124 220 187 4 3 58 6 . . 8 52 63 79 22 1 42 68 161 135 51 Largest 3 | 2 2 2 2 2 1 1 3 3 . . 3 3 3 3 3 2 3 3 3 3 3 Hottest 273 | 80 100 136 112 113 36 36 149 134 . . 137 181 230 230 145 70 145 158 254 226 273 Shots Fired 2959 | 22 173 240 410 349 5 2 97 8 . . 14 144 161 218 41 2 108 179 351 321 114 Gun 1429 | 22 158 . 162 233 . . 41 2 . . 6 86 29 140 24 2 83 106 54 204 77 Cannon 1401 | . 14 235 245 100 . . 52 1 . . 3 57 132 74 9 . 25 64 264 101 25 Launcher 127 | . . 4 3 16 5 2 4 5 . . 5 1 . 4 8 . . 9 33 16 12 Special 2 | . 1 1 . . . . . . . . . . . . . . . . . . . Kinetic 1901 | 9 90 51 296 222 . . 71 2 . . 6 94 107 170 24 2 83 124 247 230 73 Thermal 479 | 11 83 154 30 6 . . 20 . . . . 19 6 . . . . 33 22 66 29 Explosive 35 | . . 4 1 12 5 . . . . . . 1 . . . . . . 3 3 6 Electromagnetic 544 | 2 . 31 83 109 . 2 6 6 . . 8 30 48 48 17 . 25 22 79 22 6 Robot Hit Streak 46 | 14 9 14 31 25 8 . 37 4 . . 8 19 43 46 12 . 30 33 42 13 26 Robot Miss Streak 9 | 1 3 3 5 3 . . 3 . . . 1 3 2 3 1 . 3 2 4 9 5 Penetration Max 2 | . . . 1 . . . . . . . . 1 1 2 1 . 1 1 . 1 1 Secondary Targets 18 | . . . 2 4 . . . . . . . . . 4 . . 2 . . 2 4 Max Gunslinging Chain 2 | . . . 1 1 . . . . . . . . . 2 . . 1 . . 1 1 Shots Hit Robots 2079 | 19 101 146 271 296 4 . 76 2 . . 10 94 138 171 31 . 76 144 251 180 69 Core Hits 1164 | 8 49 68 118 181 6 2 46 6 . . 7 53 54 82 31 . 53 59 154 117 70 Critical Hits 197 | . . 2 1 2 . . 1 . . . . 11 35 33 7 . 20 25 34 19 7 Critical Kills 77 | . . 2 1 . . . . . . . . 5 8 9 2 . 10 11 18 9 2 Critical Parts Destroyed 106 | . . . . 2 . . 1 . . . . 6 23 21 5 . 9 12 13 10 4 Melee Attacks 61 | . . . . 19 . . 2 3 2 . . 14 . . 3 1 13 1 . . 3 Impact . | . . . . . . . . . . . . . . . . . . . . . . Slashing 61 | . . . . 19 . . 2 3 2 . . 14 . . 3 1 13 1 . . 3 Piercing . | . . . . . . . . . . . . . . . . . . . . . . Sneak Attacks 6 | . . . . . . . 1 1 . . . . . . 3 . . 1 . . . Combat Hostiles . | . . . . . . . . . . . . . . . . . . . . . . Follow-up Attacks . | . . . . . . . . . . . . . . . . . . . . . . Damage Inflicted 69721 | 181 1211 3476 6262 9665 230 45 2304 574 . . 558 2918 3688 4795 1942 . 3365 5041 11582 7386 4498 Guns 23051 | 181 1089 . 1833 3842 . . 827 . . . 136 1247 502 2995 557 . 1976 2355 1040 3276 1195 Cannons 28566 | . 122 3037 3969 2091 . . 1084 20 . . 43 946 3038 1430 234 . 787 1699 6995 2372 699 Explosions 16804 | . . 439 460 3272 230 45 218 427 . . 379 722 148 370 853 . 601 873 3525 1738 2504 Melee 1274 | . . . . 460 . . 175 127 . . . . . . 298 . . 114 . . 100 Ramming 26 | . . . . . . . . . . . . 3 . . . . 1 . 22 . . Kinetic 35751 | 65 564 662 4066 4073 . . 1416 20 . . 99 1163 2571 3310 557 . 1976 2811 6796 4461 1141 Thermal 8415 | 88 647 1839 512 731 . . 430 . . . . 498 258 . . . 33 762 751 1113 753 Explosive 7432 | . . 276 217 2166 230 . . . . . . 586 . . . . . . 1608 644 1705 Electromagnetic 16823 | 28 . 699 1467 2235 . 45 283 427 . . 459 668 859 1485 1087 . 1355 1354 2405 1168 799 Impact . | . . . . . . . . . . . . . . . . . . . . . . Slashing 1274 | . . . . 460 . . 175 127 . . . . . . 298 . . 114 . . 100 Piercing . | . . . . . . . . . . . . . . . . . . . . . . Highest Corruption 16 | . . 1 2 8 8 8 1 1 1 1 . 2 4 4 2 2 6 1 16 14 15 Average Corruption 3 | . . 1 2 2 8 8 1 1 1 1 . 1 2 3 1 2 1 1 3 8 14 Corruption Purged 17 | . . . . . . . . . . . . . . 4 . . 2 . 5 6 . Effects 303 | . . 15 28 5 17 16 8 7 2 1 . 15 12 11 2 1 4 2 52 57 48 Message Errors 64 | . . 8 10 . 1 3 5 3 2 . . 5 5 2 . . 1 . 8 6 5 Matter Fused 25 | . . . . . 2 3 . . . . . . . 3 . . . . 4 9 4 Heat Flow Errors 28 | . . . 2 . 4 3 . . . . . 2 . 1 1 1 2 . 4 5 3 Energy Discharges 35 | . . 2 6 2 4 2 . 2 . . . 2 3 1 . . 1 1 5 2 2 Parts Rejected 4 | . . . . 1 . . . . . . . . 1 . . . . . 1 . 1 Data Loss (minor) 39 | . . . 2 . 4 3 2 2 . 1 . 1 1 3 1 . . . 5 10 4 Data Loss (major) 5 | . . . . . 1 1 . . . . . . . . . . . . . 1 2 Misfires 6 | . . . . . 1 . . . . . . . . . . . . . 3 1 1 Alerts 1 | . . . . . . . . . . . . . . . . . . . 1 . . Misdirections 5 | . . . . . . . . . . . . . . . . . . . . 2 3 Targeting Errors 78 | . . 5 7 2 . . 1 . . . . 4 2 1 . . . 1 17 16 22 Weapon Failures 13 | . . . 1 . . 1 . . . . . 1 . . . . . . 4 5 1 Overload Shots . | . . . . . . . . . . . . . . . . . . . . . . Overflow Damage 1611 | . . 139 82 207 23 . 149 124 . . . 4 32 111 13 . 47 185 281 41 173 Projectiles 729 | . . 100 82 79 . . 35 . . . . 4 32 88 . . 6 148 97 15 43 Explosions 650 | . . 39 . 128 23 . . 6 . . . . . 23 13 . 41 37 184 26 130 Melee 232 | . . . . . . . 114 118 . . . . . . . . . . . . . Knockbacks 148 | . . 7 25 10 . . 12 . . . 1 8 17 . . . . 1 49 18 . Impact . | . . . . . . . . . . . . . . . . . . . . . . Kinetic 137 | . . 7 23 10 . . 11 . . . 1 8 17 . . . . 1 43 16 . Secondary 11 | . . . 2 . . . 1 . . . . . . . . . . . 6 2 . Self-Inflicted Damage 856 | . . 102 . . . . . . . . . 72 . . 19 . 135 76 156 1 295 Shots 34 | . . 3 . . . . . . . . . 2 . . 1 . 2 5 7 1 13 Rammed 4 | . . 1 . . . . . . . . . 1 . . . . 1 . 1 . . Targets Rammed 5 | . . 1 . . . . . . . . . 1 . . . . 1 . 2 . . Kicked 1 | . . . . . . . . . . . . . . . . . . . 1 . . Crushed . | . . . . . . . . . . . . . . . . . . . . . . Highest Temperature 499 | 60 286 243 100 265 196 198 357 42 . . 138 293 491 447 187 64 308 150 499 194 199 Average Temperature 95 | 29 66 62 11 49 84 87 91 24 . . 58 87 159 122 72 43 123 34 122 94 57 Received Heat Transfer 7004 | . 153 354 891 2118 51 . 63 . . . 27 288 93 278 45 . 189 285 1179 639 351 Effects 22 | . . . . . . . 2 . . . . 1 5 5 . . 2 . 7 . . Shutdowns 12 | . . . . . . . . . . . . . 5 2 . . . . 5 . . Energy Bleed 4 | . . . . . . . 1 . . . . 1 . 1 . . 1 . . . . Interference 2 | . . . . . . . 1 . . . . . . . . . 1 . . . . Matter Decay 3 | . . . . . . . . . . . . . . 2 . . . . 1 . . Short Circuit 1 | . . . . . . . . . . . . . . . . . . . 1 . . Siege Activations 5 | . . . . . . . . . . . . . . 1 . . . 1 3 . . Total Turns 170 | . . . . . . . . . . . . . . 59 . . . 43 68 . . Longest Duration 59 | . . . . . . . . . . . . . . 59 . . . 43 45 . . Robots Corrupted 41 | . . . 2 3 . . 2 1 . . 2 2 . 2 5 . . 5 9 4 4 Combat Hostiles 38 | . . . 2 3 . . 2 1 . . 2 . . 2 4 . . 5 9 4 4 Parts Fried 102 | . . 2 8 9 . . 2 1 . . 1 7 4 9 13 . 5 9 18 7 7 Impact Corruptions . | . . . . . . . . . . . . . . . . . . . . . . Robots Melted . | . . . . . . . . . . . . . . . . . . . . . . Combat Hostiles . | . . . . . . . . . . . . . . . . . . . . . . Parts Melted 14 | . 1 2 1 . . . . . . . . . . . . . 3 2 2 3 . Heat Transferred 12392 | 200 1506 3271 964 681 . . 950 . . . . 633 248 . . . 50 999 829 1395 666 Parts Sabotaged 6 | . . . . . . . . . . . . . . . . . . . 6 . . Parts Stolen 1 | . . . . . . 1 . . . . . . . . . . . . . . . Parts Stripped . | . . . . . . . . . . . . . . . . . . . . . . Power Chain Reactions 17 | . . 4 2 2 . . . . . . . 2 1 . 1 . 1 . 2 2 . Missiles Intercepted . | . . . . . . . . . . . . . . . . . . . . . . Alert | -11 -10 -9 -8 -7 -7 -7 -6 -6 -6 -6 -5 -5 -4 -4 -4 -4 -4 -3 -3 -2 -2 ------- Run | Scr Mat Mat Mat Fac Low Low Fac Low Low Zio Pro Fac Fac Ext Cet Arc Hub Res Arm Res Gar Peak Influence 2185 | 25 262 545 1001 1614 . . 395 . . . . 431 344 489 640 459 1016 944 2185 1713 1785 Average Influence 562 | 8 116 285 513 1031 . . 226 . . . . 250 143 220 473 293 331 689 1059 1403 1551 Maximum Alert Level 5 | . 1 2 3 5 . . 1 . . . . 2 1 2 2 2 3 3 5 5 5 Low Security (%) 25 | 100 90 17 22 . . . 48 . . . . 25 77 46 . . 42 . . . . Level 1 28 | . 9 66 23 . . . 51 . . . . 70 22 45 31 80 30 . 4 . . Level 2 13 | . . 16 10 18 . . . . . . . 3 . 8 67 19 19 41 40 . . Level 3 13 | . . . 42 36 . . . . . . . . . . . . 7 58 10 . . Level 4 14 | . . . . 41 . . . . . . . . . . . . . . 21 92 67 Level 5 2 | . . . . . . . . . . . . . . . . . . . 18 7 31 High Security . | . . . . 3 . . . . . . . . . . . . . . 4 . . Max Security . | . . . . . . . . . . . . . . . . . . . . . . Squads Dispatched 96 | . 5 5 8 23 . . 2 . . . . 7 8 4 . . 7 4 10 13 . Investigation 25 | . 4 3 2 3 . . . . . . . 4 3 3 . . . 1 2 . . Extermination 20 | . . . . 4 . . 2 . . . . 2 2 . . . 2 1 4 3 . Reinforcement 17 | . 1 2 2 4 . . . . . . . 1 . 1 . . 4 . . 2 . Assault 23 | . . . 1 10 . . . . . . . . . . . . . 2 4 6 . Garrison 11 | . . . 3 2 . . . . . . . . 3 . . . 1 . . 2 . Intercept . | . . . . . . . . . . . . . . . . . . . . . . Construction Impeded 5 | . . 1 1 1 . . . . . . . . . 1 . . 1 . . . . Haulers Reinforced 6 | . . . . 2 . . . . . . . 1 . . . . 1 . . 2 . Stealth | -11 -10 -9 -8 -7 -7 -7 -6 -6 -6 -6 -5 -5 -4 -4 -4 -4 -4 -3 -3 -2 -2 --------- Run | Scr Mat Mat Mat Fac Low Low Fac Low Low Zio Pro Fac Fac Ext Cet Arc Hub Res Arm Res Gar Distress Signals 25 | . 3 3 7 1 . . . . . . . . 1 2 2 . 2 2 2 . . Communications Jammed 1 | . . . . . . . . . . . . . . . . . . . . 1 . Distress Signals 1 | . . . . . . . . . . . . . . . . . . . . 1 . Times Spotted 708 | . 31 59 83 116 3 1 15 5 . . 6 28 23 50 20 3 33 30 104 63 35 Peak Tracking Total 11 | . 4 8 6 11 3 1 3 4 . . 3 4 3 6 5 8 7 9 7 8 9 Tactical Retreats 65 | . 2 1 7 18 . . . 1 . . 1 5 4 5 1 1 3 2 6 7 1 Traps | -11 -10 -9 -8 -7 -7 -7 -6 -6 -6 -6 -5 -5 -4 -4 -4 -4 -4 -3 -3 -2 -2 ------- Run | Scr Mat Mat Mat Fac Low Low Fac Low Low Zio Pro Fac Fac Ext Cet Arc Hub Res Arm Res Gar Traps Triggered 21 | . 2 4 3 . . . . . . . . 2 1 1 . . . 1 4 . 3 Indirectly 4 | . . . . . . . . . . . . . . . . . . . 4 . . Trap Hack Attempts . | . . . . . . . . . . . . . . . . . . . . . . Triggered . | . . . . . . . . . . . . . . . . . . . . . . Disarmed . | . . . . . . . . . . . . . . . . . . . . . . Reprogrammed . | . . . . . . . . . . . . . . . . . . . . . . Reused . | . . . . . . . . . . . . . . . . . . . . . . Traps Extracted . | . . . . . . . . . . . . . . . . . . . . . . Installed . | . . . . . . . . . . . . . . . . . . . . . . Triggered 6 | . . . . . 1 4 . 1 . . . . . . . . . . . . . Machines | -11 -10 -9 -8 -7 -7 -7 -6 -6 -6 -6 -5 -5 -4 -4 -4 -4 -4 -3 -3 -2 -2 ---------- Run | Scr Mat Mat Mat Fac Low Low Fac Low Low Zio Pro Fac Fac Ext Cet Arc Hub Res Arm Res Gar Machines Disabled 75 | . 2 6 . 13 . . . . . . . 9 1 3 5 4 15 1 11 4 1 Max in Single Turn 13 | . 1 2 . 7 . . . . . . . 4 1 1 1 2 13 1 2 1 1 Garrison Access 7 | . . . 1 2 . . 1 . . . . 1 1 . . . . . . 1 . Garrison Relay 1 | . . . . . . . . . . . . . . . . . . . . . 1 Network Hub 1 | . . . . . . . . . . . . . . . . . 1 . . . . Energy Cycler 1 | . . . . . . . . . . . . . . . . . . . 1 . . Machines Sabotaged 1 | . . . . . . . . . . . . . . . . . . . 1 . . Garrisons Compromised . | . . . . . . . . . . . . . . . . . . . . . . Overloaded Fab Kills . | . . . . . . . . . . . . . . . . . . . . . . Fab Network Shutdowns . | . . . . . . . . . . . . . . . . . . . . . . Hacking | -11 -10 -9 -8 -7 -7 -7 -6 -6 -6 -6 -5 -5 -4 -4 -4 -4 -4 -3 -3 -2 -2 --------- Run | Scr Mat Mat Mat Fac Low Low Fac Low Low Zio Pro Fac Fac Ext Cet Arc Hub Res Arm Res Gar Machines Accessed 87 | . 8 11 15 6 . . 1 . . . . 8 11 10 4 1 2 2 5 3 . Terminals 57 | . 6 9 10 3 . . . . . . . 3 5 10 4 . 2 2 2 1 . Fabricators 8 | . . . . . . . . . . . . 3 2 . . . . . 3 . . Repair Stations 1 | . . . 1 . . . . . . . . . . . . . . . . . . Recycling Units 8 | . 2 2 2 1 . . . . . . . . 1 . . . . . . . . Scanalyzers 4 | . . . 1 . . . . . . . . 1 1 . . . . . . 1 . Garrison Access 8 | . . . 1 2 . . 1 . . . . 1 2 . . . . . . 1 . Total Hacks 289 | . 23 42 66 15 . . 1 . . . . 21 34 34 7 20 3 4 10 9 . Successful 159 | . 13 26 39 3 . . 1 . . . . 12 13 19 . 20 1 . 7 5 . Failed 128 | . 9 16 26 12 . . . . . . . 9 21 15 7 . 2 4 3 4 . Catastrophic 25 | . 2 . 3 3 . . . . . . . 2 3 5 2 . . 3 1 1 . Database Lockouts 2 | . 1 . 1 . . . . . . . . . . . . . . . . . . Manual 121 | . 13 18 31 3 . . . . . . . 6 12 23 6 . 1 3 5 . . Terminals 186 | . 17 38 44 7 . . . . . . . 9 17 34 7 . 3 4 4 2 . Fabricators 20 | . . . . . . . . . . . . 9 5 . . . . . 6 . . Repair Stations 7 | . . . 7 . . . . . . . . . . . . . . . . . . Recycling Units 20 | . 6 4 4 3 . . . . . . . . 3 . . . . . . . . Scanalyzers 22 | . . . 10 . . . . . . . . 2 6 . . . . . . 4 . Garrison Access 14 | . . . 1 5 . . 1 . . . . 1 3 . . . . . . 3 . Terminal Hacks 77 | . 6 14 13 1 . . . . . . . 5 4 12 . 20 1 . . 1 . Record 20 | . . . . . . . . . . . . . . . . 20 . . . . . Part Schematic 2 | . . . . . . . . . . . . 1 . 1 . . . . . . . Robot Schematic 2 | . 1 . . . . . . . . . . . 1 . . . . . . . . Robot Analysis 2 | . . . 1 . . . . . . . . . . 1 . . . . . . . Prototype ID Bank 5 | . 1 1 1 . . . . . . . . 1 . . . . . . . 1 . Open Door 6 | . . . . . . . . . . . . . 1 5 . . . . . . . Terminal Index 1 | . . 1 . . . . . . . . . . . . . . . . . . . Recycling Unit Index 1 | . . 1 . . . . . . . . . . . . . . . . . . . Alert Level 1 | . . . . . . . . . . . . . . 1 . . . . . . . Unreport Threat 9 | . 1 2 2 . . . . . . . . . 2 2 . . . . . . . Locate Traps 5 | . . 1 1 1 . . . . . . . 1 . 1 . . . . . . . Recall Investigation 1 | . 1 . . . . . . . . . . . . . . . . . . . . Recall Reinforcements 1 | . . 1 . . . . . . . . . . . . . . . . . . . Hauler Manifests 3 | . . 1 2 . . . . . . . . . . . . . . . . . . Registered Components 1 | . 1 . . . . . . . . . . . . . . . . . . . . Zone Layout 17 | . 1 6 6 . . . . . . . . 2 . 1 . . 1 . . . . Fabricator Hacks 8 | . . . . . . . . . . . . 3 1 . . . . . 4 . . Load Schematic 4 | . . . . . . . . . . . . 2 . . . . . . 2 . . Build 4 | . . . . . . . . . . . . 1 1 . . . . . 2 . . Repair Station Hacks 6 | . . . 6 . . . . . . . . . . . . . . . . . . Scan Component 3 | . . . 3 . . . . . . . . . . . . . . . . . . Repair 3 | . . . 3 . . . . . . . . . . . . . . . . . . Recycling Unit Hacks 5 | . 1 2 1 . . . . . . . . . 1 . . . . . . . . Retrieve Components 5 | . 1 2 1 . . . . . . . . . 1 . . . . . . . . Scanalyzer 18 | . . . 10 . . . . . . . . 2 3 . . . . . . 3 . Insert Component 9 | . . . 5 . . . . . . . . 1 2 . . . . . . 1 . Analyze 9 | . . . 5 . . . . . . . . 1 1 . . . . . . 2 . Garrison Access Hacks 5 | . . . 1 1 . . 1 . . . . . 1 . . . . . . 1 . Unlock Access 1 | . . . . . . . . . . . . . . . . . . . . 1 . Seal Access 4 | . . . 1 1 . . 1 . . . . . 1 . . . . . . . . Unauthorized Hacks 40 | . 6 10 8 1 . . . . . . . 2 3 7 . . . . 3 . . Terminals 31 | . 4 8 7 . . . . . . . . 1 2 7 . . . . 2 . . Track 14 | . 2 4 3 . . . . . . . . 1 1 3 . . . . . . . Botnet 11 | . 1 3 4 . . . . . . . . . . 3 . . . . . . . Disrupt 4 | . 1 . . . . . . . . . . . 1 1 . . . . 1 . . Operators 1 | . . 1 . . . . . . . . . . . . . . . . . . . Sabotage 1 | . . . . . . . . . . . . . . . . . . . 1 . . Fabricators 2 | . . . . . . . . . . . . . 1 . . . . . 1 . . Report 1 | . . . . . . . . . . . . . . . . . . . 1 . . Prioritize 1 | . . . . . . . . . . . . . 1 . . . . . . . . Repair Stations . | . . . . . . . . . . . . . . . . . . . . . . Recycling Units 5 | . 2 2 1 . . . . . . . . . . . . . . . . . . Tunnel 5 | . 2 2 1 . . . . . . . . . . . . . . . . . . Scanalyzers . | . . . . . . . . . . . . . . . . . . . . . . Garrison Access 2 | . . . . 1 . . . . . . . 1 . . . . . . . . . Jam 2 | . . . . 1 . . . . . . . 1 . . . . . . . . . Data Cores Recovered 4 | . 1 . . . . . . . . . . . . 1 . . 1 . . 1 . Used 1 | . . . . . . . . . . . . . . . . . 1 . . . . Hacking Detections 69 | . 7 9 11 5 . . . . . . . 7 9 9 4 . 1 2 3 2 . Full Trace Events 13 | . . 1 1 2 . . . . . . . 3 2 3 . . . 1 . . . Feedback Events 1 | . . . . . . . . . . . . 1 . . . . . . . . . Corruption 1 | . . . . . . . . . . . . 1 . . . . . . . . . Feedback Blocked . | . . . . . . . . . . . . . . . . . . . . . . Robot Schematics Acquired 2 | . 1 . . . . . . . . . . . 1 . . . . . . . . Robots Built . | . . . . . . . . . . . . . . . . . . . . . . Matter . | . . . . . . . . . . . . . . . . . . . . . . Time . | . . . . . . . . . . . . . . . . . . . . . . Total Robot Build Rating . | . . . . . . . . . . . . . . . . . . . . . . Part Schematics Acquired 8 | . . . 5 . . . . . . . . 1 1 1 . . . . . . . Parts Built 4 | . . . . . . . . . . . . 2 . . . . . . 2 . . Matter 804 | . . . . . . . . . . . . 256 278 . . . . . 270 . . Time 256 | . . . . . . . . . . . . 64 139 . . . . . 53 . . Total Part Build Rating 21 | . . . . . . . . . . . . 16 . . . . . . 5 . . Parts Repaired 3 | . . . 3 . . . . . . . . . . . . . . . . . . Time 54 | . . . 54 . . . . . . . . . . . . . . . . . . Parts Recycled . | . . . . . . . . . . . . . . . . . . . . . . Recycled Matter . | . . . . . . . . . . . . . . . . . . . . . . Retrieved Matter . | . . . . . . . . . . . . . . . . . . . . . . Retrieved Components 24 | . . 5 9 . . . . . . . . . 10 . . . . . . . . Parts Scanalyzed 9 | . . . 5 . . . . . . . . 1 2 . . . . . . 1 . Part Schematics Acquired 6 | . . . 5 . . . . . . . . . 1 . . . . . . . . Parts Damaged . | . . . . . . . . . . . . . . . . . . . . . . Bothacking | -11 -10 -9 -8 -7 -7 -7 -6 -6 -6 -6 -5 -5 -4 -4 -4 -4 -4 -3 -3 -2 -2 ------------ Run | Scr Mat Mat Mat Fac Low Low Fac Low Low Zio Pro Fac Fac Ext Cet Arc Hub Res Arm Res Gar Used RIF Installer 1 | . . . . . . . . . . . . . . . . . . . . . 1 Robots Hacked . | . . . . . . . . . . . . . . . . . . . . . . Non-combat . | . . . . . . . . . . . . . . . . . . . . . . Combat . | . . . . . . . . . . . . . . . . . . . . . . Robot Hacks Applied . | . . . . . . . . . . . . . . . . . . . . . . Relay Couplers Released 12 | . . . . 1 . . 4 . . . . . . . . . . . . 2 5 Machine Destruction 8 | . . . . 1 . . . . . . . . . . . . . . . 2 5 Programmers 4 | . . . . . . . 4 . . . . . . . . . . . . . . Attached 2 | . . . . . . . . . . . . . . . . . . . . . 2 Robots Rewired 15 | . . . . . . . . . . . 1 . . 10 . . . . 4 . . Allies Hacked . | . . . . . . . . . . . . . . . . . . . . . . Hacks Repelled . | . . . . . . . . . . . . . . . . . . . . . . Allies | -11 -10 -9 -8 -7 -7 -7 -6 -6 -6 -6 -5 -5 -4 -4 -4 -4 -4 -3 -3 -2 -2 -------- Run | Scr Mat Mat Mat Fac Low Low Fac Low Low Zio Pro Fac Fac Ext Cet Arc Hub Res Arm Res Gar Total Allies 29 | . . . . . . . . . . 3 1 . . 15 3 3 . . 4 . . Largest Group 7 | . . . . . . . . . . 3 3 2 . 7 6 3 . . 4 . . Highest-Rated Group 476 | . . . . . . . . . . 90 90 67 . 406 476 357 . . 224 . . Highest-Rated Ally 156 | . . . . . . . . . . 31 41 41 . 156 156 122 . . 56 . . Total Orders 5 | . . . . . . . . . . . . . 1 1 3 . . . . . . GOTO 3 | . . . . . . . . . . . . . . 1 2 . . . . . . FOLLOW 1 | . . . . . . . . . . . . . . . 1 . . . . . . EXPLORE 1 | . . . . . . . . . . . . . 1 . . . . . . . . Ally Attacks 234 | . . . . . . . . . . . 29 2 . 92 57 18 . . 36 . . Total Damage 7393 | . . . . . . . . . . . 466 12 . 2501 1422 1528 . . 1464 . . Kills 33 | . . . . . . . . . . . 3 . . 11 8 5 . . 6 . . Allies Corrupted 2 | . . . . . . . . . . . . . . . . . . . 2 . . Allies Melted 1 | . . . . . . . . . . . . . . . . 1 . . . . . Intel | -11 -10 -9 -8 -7 -7 -7 -6 -6 -6 -6 -5 -5 -4 -4 -4 -4 -4 -3 -3 -2 -2 ------- Run | Scr Mat Mat Mat Fac Low Low Fac Low Low Zio Pro Fac Fac Ext Cet Arc Hub Res Arm Res Gar Robot Analysis Total 2 | . . . 1 . . . . . . . . . . 1 . . . . . . . Derelict Logs Recovered 6 | . . . . . . . . 2 2 2 . . . . . . . . . . . Drone Launches 10 | . . . . . . . . . . . . 6 . 2 . . . . . 2 . Drone Recoveries . | . . . . . . . . . . . . . . . . . . . . . . Exploration | -11 -10 -9 -8 -7 -7 -7 -6 -6 -6 -6 -5 -5 -4 -4 -4 -4 -4 -3 -3 -2 -2 ------------- Run | Scr Mat Mat Mat Fac Low Low Fac Low Low Zio Pro Fac Fac Ext Cet Arc Hub Res Arm Res Gar Turns Passed 27506 | 83 1343 2214 3159 2680 551 648 1797 1367 444 1636 739 2158 1053 1696 619 72 778 633 1964 1330 542 Spaces Moved 12553 | 41 769 859 1183 965 272 355 763 765 274 1079 419 1028 518 836 303 41 345 230 701 577 230 Core 3 | 2 . . . . . . . . . . . . . . . . . . . . 1 Treads 7523 | . . 809 1183 965 272 355 763 439 . . . 195 518 534 157 41 345 230 696 21 . Legs 4169 | . . . . . . . . 326 274 1079 419 833 . 302 146 . . . 5 556 229 Wheels 858 | 39 769 50 . . . . . . . . . . . . . . . . . . . Hover . | . . . . . . . . . . . . . . . . . . . . . . Flight . | . . . . . . . . . . . . . . . . . . . . . . Fastest Speed 50 | 50 80 160 185 185 180 180 180 150 150 150 150 150 145 145 150 160 160 160 152 110 117 Average Speed 166 | 78 127 197 195 197 196 180 192 173 150 150 154 167 145 146 155 160 160 164 158 139 132 Slowest Speed 1550 | 80 150 200 260 225 220 180 270 230 150 150 180 180 145 180 180 160 160 175 210 270 1550 Overloaded Moves . | . . . . . . . . . . . . . . . . . . . . . . Propulsion Burnouts . | . . . . . . . . . . . . . . . . . . . . . . Robots Hopped . | . . . . . . . . . . . . . . . . . . . . . . Cave-ins Triggered . | . . . . . . . . . . . . . . . . . . . . . . Exploration Rate (%) 48 | 4 96 90 91 21 55 26 14 77 45 85 60 21 11 81 77 69 33 9 37 19 35 Regions Visited 21 Branch Regions 11 Pre-discovered Areas 7 | . 2 2 1 . . . . . 1 1 . . . . . . . . . . . Known Exits Taken 16 | . 1 . . . 1 1 1 1 1 1 1 1 1 1 1 1 1 1 . 1 . Unknown Exits Taken 5 | 1 . 1 1 1 . . . . . . . . . . . . . . 1 . . Scrap Searched 11 | . . . . . 2 1 . 1 1 4 2 . . . . . . . . . . Spaces Dug 44 | . 1 1 2 1 . . . 2 2 . . 14 1 . . . 18 . 2 . . Terrain Destroyed 843 | . 1 73 45 74 14 . 1 2 2 . . 65 7 27 4 . 192 8 131 98 99 Melee 32 | . . . . 1 . . . 2 2 . . 14 . . . . 13 . . . . Projectile 198 | . 1 2 23 . . . 1 . . . . 1 3 27 3 . 20 8 52 47 10 AOE 613 | . . 71 22 73 14 . . . . . . 50 4 . 1 . 159 . 79 51 89 Actions | -11 -10 -9 -8 -7 -7 -7 -6 -6 -6 -6 -5 -5 -4 -4 -4 -4 -4 -3 -3 -2 -2 --------- Run | Scr Mat Mat Mat Fac Low Low Fac Low Low Zio Pro Fac Fac Ext Cet Arc Hub Res Arm Res Gar Total 16390 | 67 983 1144 1644 1357 285 362 1001 796 305 1098 500 1328 691 1136 412 44 457 343 1254 820 363 Wait 1058 | 3 73 79 131 53 . 1 122 6 26 6 48 149 51 50 26 2 29 6 169 9 19 Move 12534 | 40 768 858 1182 964 271 354 762 764 273 1078 418 1027 517 835 302 40 344 229 701 577 230 Hop . | . . . . . . . . . . . . . . . . . . . . . . Pick Up 248 | 4 24 31 22 21 4 1 21 3 2 3 4 13 15 8 7 . 2 9 34 13 7 Fast Attach 225 | 7 4 3 19 19 1 . 12 4 . 3 5 13 4 18 13 . 4 4 34 37 21 Attach 145 | . 2 13 7 30 3 2 4 . . 1 . 4 8 3 1 . 4 11 27 16 9 Detach 22 | 1 . . . 2 1 1 1 . . . . 1 3 . 1 . . 1 5 2 3 Swap 242 | 1 6 13 22 34 . . 8 3 . 1 5 26 15 23 14 . 12 7 28 15 9 Drop 323 | . 15 22 41 28 1 . 11 7 2 6 9 26 15 32 23 . 6 7 46 16 10 Fire 1386 | 11 91 124 220 187 4 3 58 6 . . 8 52 63 79 22 1 42 68 161 135 51 Melee 61 | . . . . 19 . . 2 3 2 . . 14 . . 3 1 13 1 . . 3 Ram . | . . . . . . . . . . . . . . . . . . . . . . Kick 2 | . . . . . . . . . . . . 1 . . . . . . 1 . . Crush 2 | . . 1 . . . . . . . . . . . . . . 1 . . . . Escape Stasis 6 | . . . . . . . . . . . . . . 5 . . . . . . 1 Rewire 133 | . . . . . . . . . . . 3 . . 82 . . . . 48 . . Trap . | . . . . . . . . . . . . . . . . . . . . . . Miscellaneous 3 | . . . . . . . . . . . . 2 . 1 . . . . . . . Route ------- -11/Scrapyard -10/Materials (discovered 5 exits: *Mat x3 / *Min x2) -9/Materials (discovered 4 exits: *Mat x3 / [*Min]) -8/Materials (discovered 2 exits: *Fac x2) -7/Factory (discovered 3 exits: *Fac / [*Low x2]) -7/Lower Caves -7/Lower Caves -6/Factory (discovered 2 exits: *Fac / *Low) -6/Lower Caves -6/Lower Caves -6/Zion (discovered 2 exits: Dee / *Pro) -5/Proximity Caves -5/Factory (discovered 2 exits: *Fac / Upp) -4/Factory (discovered 2 exits: *Upp / *Ext) -4/Extension (discovered 2 exits: *Res / *Cet) -4/Cetus (discovered 2 exits: *Res / *Arc) -4/Archives -4/Hub_04(d) -3/Research -3/Armory -2/Research -2/Garrison History --------- Turn | Location | Event 38 | -11/Scrapyard | Discovered new exit (range 16) 84 | -11/Scrapyard | Entered Materials 163 | -10/Materials | Discovered new exit (range 7) 220 | -10/Materials | Discovered new exit (range 16) 266 | -10/Materials | Identified exit to Materials 281 | -10/Materials | Central database locked down 316 | -10/Materials | Build established: Mutant 345 | -10/Materials | Identified exit to Mines 452 | -10/Materials | Discovered exit to Mines (range 14) 664 | -10/Materials | Discovered exit to Materials (range 15) 911 | -10/Materials | Build established: Hauler-Mutant 982 | -10/Materials | Discovered exit to Materials (range 13) 1427 | -10/Materials | Entered another Materials area 1427 | -9/Materials | Evolved 2 slots: Utility x2 1971 | -9/Materials | Discovered new exit (range 3) 2238 | -9/Materials | Destroyed 9 combat bots 2389 | -9/Materials | Discovered new exit (range 6) 2667 | -9/Materials | Discovered new exit (range 10) 3309 | -9/Materials | Core integrity fell below 50% 3602 | -9/Materials | Discovered new exit (range 9) 3641 | -9/Materials | Entered another Materials area 3641 | -8/Materials | Evolved 2 slots: Utility x2 4360 | -8/Materials | Discovered new exit (range 17) 4987 | -8/Materials | Garrison activated, responded to threat 5571 | -8/Materials | Discovered new exit (range 15) 5879 | -8/Materials | Central database locked down 6374 | -8/Materials | Repaired Assault Cannon 6394 | -8/Materials | Repaired Deuterium Engine 6412 | -8/Materials | Repaired Lgt. EM Pulse Cannon 6441 | -8/Materials | First assault squad dispatched 6800 | -8/Materials | Entered Factory 6800 | -7/Factory | Evolved 2 slots: Utility x2 7600 | -7/Factory | First assault squad dispatched 7857 | -7/Factory | Discovered new exit (range 11) 7907 | -7/Factory | Lost 3 parts (1p1u1w) 7962 | -7/Factory | Discovered new exit (range 9) 8649 | -7/Factory | Discovered new exit (range 3) 8921 | -7/Factory | Lost 12 parts (1p3n4u4w) 9263 | -7/Factory | Core integrity fell below 50% 9296 | -7/Factory | Garrison activated, responded to threat 9369 | -7/Factory | Lost 9 parts (1p2n2u4w) 9398 | -7/Factory | High security lockdown imminent 9478 | -7/Factory | High security lockdown engaged 9480 | -7/Factory | Entered Lower Caves 9481 | -7/Lower Caves | Core integrity fell below 20% 9482 | -7/Lower Caves | Attracted the attention of an 0b10 checkpoint 9505 | -7/Lower Caves | Lost 3 parts (1n1u1w) 9971 | -7/Lower Caves | Encountered a Warlord checkpoint 10000 | -7/Lower Caves | Discovered new exit (range 10) 10029 | -7/Lower Caves | Identified exit to Lower Caves 10031 | -7/Lower Caves | Entered another Lower Caves area 10037 | -7/Lower Caves | Imp. Grenade Launcher stolen by Master Thief 10406 | -7/Lower Caves | Discovered new exit (range 4) 10598 | -7/Lower Caves | Spotted B-75 Beast 10677 | -7/Lower Caves | Identified exit to Factory 10679 | -7/Lower Caves | Entered Factory 10679 | -6/Factory | Evolved 2 slots: Propulsion x1, Weapon x1 11233 | -6/Factory | Discovered new exit (range 15) 11293 | -6/Factory | Identified exit to Lower Caves 11583 | -6/Factory | Discovered new exit (range 16) 11603 | -6/Factory | Build established: Hauler-Skirmisher 12476 | -6/Factory | Entered Lower Caves 12998 | -6/Lower Caves | Encountered a Warlord checkpoint 13433 | -6/Lower Caves | Learned location of 1 exit from Factory 13726 | -6/Lower Caves | Build established: Hauler-Mutant 13804 | -6/Lower Caves | Learned Factory stockpile data 13830 | -6/Lower Caves | Discovered new exit (range 7) 13842 | -6/Lower Caves | Identified exit to Lower Caves 13843 | -6/Lower Caves | Entered another Lower Caves area 13991 | -6/Lower Caves | Learned Factory terminal intel 14278 | -6/Lower Caves | Discovered new exit (range 8) 14285 | -6/Lower Caves | Identified exit to Zion 14287 | -6/Lower Caves | Entered Zion 14412 | -6/Zion | Discovered new exit (range 15) 14463 | -6/Zion | System corruption cleaned by Quarantine Array 14553 | -6/Zion | Learned 12 Factory zone layouts 14700 | -6/Zion | Given A8's code to call for help 14779 | -6/Zion | Identified exit to Deep Caves 15447 | -6/Zion | Gained Derelict followers 15709 | -6/Zion | Found Prototype Device 15709 | -6/Zion | Identified Mobile Refinery Mk. CCLXVII 15916 | -6/Zion | Identified exit to Proximity Caves 15923 | -6/Zion | Entered Proximity Caves 15923 | -5/Proximity Caves | Accompanied by 3 allies 16484 | -5/Proximity Caves | Build established: Scavenger-Skirmisher 16621 | -5/Proximity Caves | Discovered new exit (range 16) 16649 | -5/Proximity Caves | Identified exit to Factory 16662 | -5/Proximity Caves | Entered Factory 16662 | -5/Factory | Accompanied by 2 allies 16662 | -5/Factory | Evolved 2 slots: Utility x2 16663 | -5/Factory | Identified exit to Upper Caves 16666 | -5/Factory | Loaded intel: 19 terminal locations 17505 | -5/Factory | Found Prototype Processor 17505 | -5/Factory | Identified Exp. Targeting Computer 17508 | -5/Factory | Found Exp. Targeting Computer 17513 | -5/Factory | Found Exp. Targeting Computer 17837 | -5/Factory | Discovered new exit (range 15) 17867 | -5/Factory | Identified exit to Factory 18266 | -5/Factory | Fabricated Adv. Heavy Treads? 18332 | -5/Factory | Build established: Scavenger-Gunner 18820 | -5/Factory | Entered another Factory area 18820 | -4/Factory | Accompanied by 6 allies 18820 | -4/Factory | Evolved 2 slots: Power x1, Propulsion x1 18881 | -4/Factory | Garrison activated, responded to threat 18896 | -4/Factory | Discovered new exit (range 26) 19209 | -4/Factory | Discovered new exit (range 6) 19295 | -4/Factory | Identified exit to Upper Caves 19597 | -4/Factory | Build established: Hauler-Gunner 19872 | -4/Factory | Identified exit to Extension 19873 | -4/Factory | Entered Extension 19922 | -4/Extension | Rescued a captive Derelict 19945 | -4/Extension | Rescued a captive Derelict 20305 | -4/Extension | Build established: Scavenger-Gunner 20617 | -4/Extension | Destroyed B-86 Titan 20656 | -4/Extension | Destroyed B-86 Titan 20748 | -4/Extension | Disrupted transfer network 20938 | -4/Extension | Destroyed 9 combat bots 21042 | -4/Extension | Found Hvy. Reflective Plating 21124 | -4/Extension | Rescued A7 21371 | -4/Extension | Rescued a captive Derelict 21372 | -4/Extension | Rescued a captive Derelict 21473 | -4/Extension | Rescued a captive Derelict 21533 | -4/Extension | Discovered new exit (range 10) 21536 | -4/Extension | Discovered new exit (range 6) 21564 | -4/Extension | Identified exit to Cetus 21569 | -4/Extension | Entered Cetus 21569 | -4/Cetus | Accompanied by 6 allies 21574 | -4/Cetus | Acquired a Cetus Manufacturing Module code from A7 21589 | -4/Cetus | Spotted Cetus Guard 21589 | -4/Cetus | Spotted Cetus Guard 21590 | -4/Cetus | Spotted Cetus Guard 21596 | -4/Cetus | Destroyed Cetus Guard 21597 | -4/Cetus | Destroyed Cetus Guard 21597 | -4/Cetus | Spotted Cetus Guard 21602 | -4/Cetus | Destroyed Cetus Guard 21612 | -4/Cetus | Destroyed Cetus Guard 21642 | -4/Cetus | Build established: Scavenger-Mutant 21710 | -4/Cetus | Started Cetus Manufacturing Module 21719 | -4/Cetus | Door terminal overloaded 21725 | -4/Cetus | Escorted A7 to Cetus Mainframe 21735 | -4/Cetus | Manufactured an Enhanced Grunt 21740 | -4/Cetus | Discovered new exit (range 16) 21760 | -4/Cetus | Manufactured an Enhanced Grunt 21785 | -4/Cetus | Manufactured an Enhanced Grunt 21789 | -4/Cetus | Cetus Manufacturing Module disabled 21838 | -4/Cetus | Spotted Cetus Guard 21840 | -4/Cetus | Spotted Cetus Guard 21843 | -4/Cetus | Spotted Cetus Guard 21843 | -4/Cetus | Spotted Cetus Guard 21845 | -4/Cetus | Destroyed Cetus Guard 21850 | -4/Cetus | Destroyed Cetus Guard 21853 | -4/Cetus | Destroyed Cetus Guard 21856 | -4/Cetus | Allies destroyed Cetus Guard 21862 | -4/Cetus | Discovered new exit (range 16) 21879 | -4/Cetus | Met Revision 17 22008 | -4/Cetus | Found Prototype Device 22008 | -4/Cetus | Identified Exp. Thermal Shield 22144 | -4/Cetus | Identified exit to Archives 22152 | -4/Cetus | Destroyed A7 22158 | -4/Cetus | Extracted ID and sensor layout for unrecognized location from A7's data core 22179 | -4/Cetus | Found Prototype Protection 22179 | -4/Cetus | Identified Med. Regenerative Plating 22188 | -4/Cetus | Entered Archives 22212 | -4/Archives | Met Zhirov 22218 | -4/Archives | Reinforcements dispatched to Archives 22220 | -4/Archives | Unable to access archive contents 22224 | -4/Archives | Discovered new exit (range 16) 22236 | -4/Archives | Read partially decrypted archive contents 22256 | -4/Archives | Identified exit to Hub_04(d) 22260 | -4/Archives | Entered Hub_04(d) 22608 | -4/Hub_04(d) | Garrison activated, responded to threat 22753 | -4/Hub_04(d) | Discovered new exit (range 5) 22765 | -4/Hub_04(d) | Identified exit to Research 22982 | -4/Hub_04(d) | Network Hub disabled 23025 | -4/Hub_04(d) | Spotted Lightning 23030 | -4/Hub_04(d) | Spotted Lightning 23031 | -4/Hub_04(d) | Spotted Lightning 23038 | -4/Hub_04(d) | Entered Research 23038 | -3/Research | Evolved 2 slots: Utility x2 23137 | -3/Research | Found Prototype Hackware 23278 | -3/Research | Destroyed 7 combat bots 23314 | -3/Research | First assault squad dispatched 23406 | -3/Research | Identified Exp. Hacking Suite 23518 | -3/Research | Build established: Scavenger-Gunner 23615 | -3/Research | Discovered new exit (range 12) 23665 | -3/Research | Identified exit to Armory 23671 | -3/Research | Entered Armory 23696 | -3/Armory | Found Fusion Bomb Launcher 23699 | -3/Armory | Found Fusion Bomb Launcher 23863 | -3/Armory | Found Gamma Bomb Array 24051 | -3/Armory | Found Prototype Launcher 24051 | -3/Armory | Identified Com. Tesla Bomb Launcher 24077 | -3/Armory | Build established: Hacker-Gunner 24092 | -3/Armory | Found Prototype Device 24092 | -3/Armory | Identified Exp. Thermal Defense Suite 24105 | -3/Armory | Found Prototype Device 24105 | -3/Armory | Identified Exp. Transmission Jammer 24129 | -3/Armory | Found Prototype Processor 24129 | -3/Armory | Identified Exp. Melee Analysis Suite 24237 | -3/Armory | Fabricated Lrn. Terrain Scanner (x1) 24385 | -3/Armory | Fabricated Lrg. Storage Unit? 24584 | -3/Armory | P-80 Master assimilated allied Assassin 8c 24644 | -3/Armory | Destroyed 9 combat bots 24753 | -3/Armory | Spotted B-86 Titan 24822 | -3/Armory | Destroyed B-86 Titan 24832 | -3/Armory | Lost 3 parts (1n2u) 24946 | -3/Armory | First assault squad dispatched 25012 | -3/Armory | Destroyed 7 combat bots 25113 | -3/Armory | Found Prototype Processor 25113 | -3/Armory | Identified Spectral Analyzer 25161 | -3/Armory | Discovered new exit (range 4) 25179 | -3/Armory | Energy Cycler disabled 25267 | -3/Armory | System corruption reached 10% 25300 | -3/Armory | Lost 7 parts (2n2u3w) 25377 | -3/Armory | Lost 4 parts (1u3w) 25379 | -3/Armory | Destroyed 11 combat bots 25509 | -3/Armory | Core integrity fell below 50% 25548 | -3/Armory | High security lockdown imminent 25570 | -3/Armory | Lost 5 parts (4u1w) 25628 | -3/Armory | High security lockdown engaged 25635 | -3/Armory | Entered Research 25635 | -2/Research | Evolved 2 slots: Propulsion x1, Utility x1 25779 | -2/Research | Lost 3 parts (2n1u) 25932 | -2/Research | Garrison activated, responded to threat 26059 | -2/Research | Lost 17 parts (3p2n7u5w) 26060 | -2/Research | Destroyed 9 combat bots 26135 | -2/Research | First assault squad dispatched 26151 | -2/Research | Lost 3 parts (1n1u1w) 26446 | -2/Research | System corruption reached 10% 26487 | -2/Research | Lost 8 parts (1n4u3w) 26547 | -2/Research | Spotted B-90 Cyclops 26652 | -2/Research | Found Gamma Bomb Array 26957 | -2/Research | Garrison activated, responded to threat 26965 | -2/Research | Identified exit to Garrison 26965 | -2/Research | Entered Garrison 26971 | -2/Garrison | Installed Relay Interface Framework 26993 | -2/Garrison | Lost 6 parts (4u2w) 27004 | -2/Garrison | Core integrity fell below 50% 27055 | -2/Garrison | Lost 7 parts (3n2u2w) 27058 | -2/Garrison | Triggered checkpoint 27189 | -2/Garrison | Lost 4 parts (1u3w) 27312 | -2/Garrison | Triggered checkpoint 27313 | -2/Garrison | Spotted B-90 Cyclops 27383 | -2/Garrison | Lost 4 parts (2n2u) 27454 | -2/Garrison | Triggered checkpoint 27468 | -2/Garrison | Triggered checkpoint 27489 | -2/Garrison | Destroyed 7 combat bots 27498 | -2/Garrison | Triggered checkpoint 27501 | -2/Garrison | Core integrity fell below 20% 27503 | -2/Garrison | High security lockdown imminent 27507 | -2/Garrison | Destroyed by S-43 Plague with Heavy Machine Gun Last Messages --------------- 27484_ Myomer Leg destroyed. 27486_ B-90 Cyclops activates siege mode. 27489_ Enh. Nova Cannon destroyed. 27491_ KE Penetrator destroyed. 27494_ Myomer Leg destroyed. 27495_ Enh. Nova Cannon destroyed. 27498_ System corrupted: Com. Tesla Bomb Launcher targeting data glitched. 27498_ Beams of light sweep through the air. An alarm sounds. 27498_ Adv. Heat Sink destroyed. 27498_ C-30 ARC bursts open, deploying its payload. 27498_ G-73 Enforcer unfolds itself. 27500_ System corrupted: Component data lost. 27501_ Lgt. Quantum Reactor destroyed. 27503_ Adv. Heat Sink destroyed. 27503_ S-43 Plague destroyed. 27503_ ALERT: High security lockdown imminent, T-100. 27504_ Relay Coupler [Hunter] destroyed. 27505_ S-43 Plague IFF system glitched. 27506_ Com. Tesla Bomb Launcher destroyed. [Achievement: Rambo] Map ----- +----------------------------------------------------+ | ??????????????????????????????????????????????#" " | | ??????????????????????????????????????#######?## # | | ???????????????????????????????????#### # ### | | ???????????????????????????????????# # # # ## | | ??????????????????????????????????### # | | ??????????????????????????????????# * | | ??????????????????????????????????# ## # ####### | | ??????????????????????????????????# #*! #????? | | ??????????????????????????????????## #????? | | ???????????????????????????????????## # ##???? | | ???????????????????????????????????# # #???? | | ???????????????????????????????????## # # ##???? | | ???????????????????????????????????# ## ####????? | | ???????????????????????????????????# # ########? | | ???????????????????????????????????# #"*= "#? | | ????????????????????????###????????## ##=% ##? | | ???????????????????????## ############# %###=%=### | | ???????????????????????#%"##=![%=!%^ | | ???????????????????????#=[==![% %^ | | ??????????????????????##[#"" ["##!"#### =### ### | | ??????????????????????#= " " "#" #???# #?# #?? | | ??????????????????????## # "#" #???# #?#####?? | | ???????????????????????#][ # " #???# #???????? | | ?????????????????????###]### "## # #???????? | | ?????????????????????#C%]C## ### ####" #???????? | | ?????????????????# ## ! @## ## #???" #???????? | | ??????????????# % ####???" #???????? | | ??????????? % #???????? | | ?????????? %% #???????? | | ??????????####### ! g ###########???????? | | ???????????????##%! # % # #?????????????????? | | ??????????????? [=[ g gg C????????????????? | | ??????????????# s C#???????????????? | | ??????????????# [%s C#???????????????? | | ??????????????# %#???????????????? | | ??????????????### ## ## ###???????????????? | | ????????????????# ?# #? #?????????????????? | | ???????????????? ?? s ? #?????????????????? | | ????????????????? ?? ? #?????????????????? | | ???????????????????? ? #?????????????????? | | ??????????????????????" #? #?????????????????? | | ?????????????????????????????????????????????????? | | ?????????????????????????????????????????????????? | | ?????????????????????????????????????????????????? | | ?????????????????????????????????????????????????? | | ?????????????????????????????????????????????????? | | ?????????????????????????????????????????????????? | | ?????????????????????????????????????????????????? | | ?????????????????????????????????????????????????? | | ?????????????????????????????????????????????????? | +----------------------------------------------------+ Best States ------------- Heat Dissipation 144 Coolant Potential 120 Energy Generation 45 Energy Capacity 1350 Matter Stores 800 Matter Capacity 800 Sight Range 24 Robot Scan Range 22 Terrain Scan Range 24 Terrain Scan Density 210 Jamming Range 22 Cloak Strength 2 Armor Coverage 1050 Resistance: TH 30 Resistance: EM 25 Core Shielding 30 Propulsion Shielding 90 Weapon Shielding 66 Phase Shifting 10 Evasion (%) 50 Targeting Accuracy 32 Melee Accuracy 12 Target Analysis 8 Core Analysis 8 Armor Integrity Analysis 50 Recoil Reduction 4 Energy Filtering 30 Kinecelleration 30 Salvage Targeting 2 Stasis Canceling 2 Offensive Hacking 28 Defensive Hacking 12 Item Schematics ----------------- Lrg. Storage Unit | -8/Materials | Scanalyzed Adv. Treads | -8/Materials | Scanalyzed Cld. Pulse Rifle | -8/Materials | Scanalyzed Adv. EMP Blaster | -8/Materials | Scanalyzed EM Pulse Cannon | -8/Materials | Scanalyzed Lrn. Terrain Scanner | -5/Factory | Hacked Imp. Medium Armor Plating | -4/Factory | Scanalyzed Hvy. Siege Treads | -4/Extension | Hacked Robot Schematics ------------------ O-16 Technician | -10/Materials | Hacked R-10 Processor | -4/Factory | Hacked Fabricated ------------ Adv. Heavy Treads | x2 | -5/Factory | Preloaded Lrn. Terrain Scanner | x1 | -3/Armory Lrg. Storage Unit | x1 | -3/Armory Alien Tech Used ----------------- None Achievements -------------- Rambo Challenges ------------ None Game ------ Seed MediumInsulatedEngine Manual? 0 Play Time 03:46:58 Cumulative 388.6 hours Start 2020.07.05 @ 19:43:21 End 2020.07.05 @ 23:37:57 Sessions 1 Manual Loads 0 Difficulty Rogue Special Mode None Game No. 270 Rogue 270 Adventurer 0 Explorer 0 Win Type - Total 4 Types 4/0/0/0/0/0/0 Lore% 85 Gallery% 85 Achievement% 64 Wizard Run 0 Options --------- ASCII 0 Keyboard 0 Movement Mouse Keybinds 1 Fullscreen 2 Font 24/Smallcaps Map View 76x50 Tactical HUD 1 Map Filters NONE Filters NONE Steam 1 RUN: 6de60512-daf4-45b5-b09c-6a5aedd8b6b6